bitfinex/quotes_ETHUSD_20211001
["timestamp","ask_amount","ask_price","bid_price","bid_amount"]
[1633117385673,3.98336367,3296.2,3296.0,0.88549402]
[1633117388474,3.91043738,3296.2,3296.1,0.21322408]
[1633117388674,6.2230002,3296.2,3296.1,0.21322408]
[1633117388879,2.24320378,3296.2,3296.1,0.21322408]
[1633117389673,2.24320378,3296.2,3296.0,2.38549402]
[1633117389674,2.31613021,3296.2,3296.0,2.38549402]
[1633117391276,1.54304947,3296.2,3296.0,2.38549402]
[1633117392175,11.63821338,3296.1,3296.0,2.38549402]
[1633117392775,0.73821338,3296.1,3296.0,2.38549402]
[1633117393176,3.88821338,3296.1,3296.0,2.38549402]
[1633117393977,0.73821338,3296.1,3296.0,2.59873461]
[1633117395179,0.07290223,3296.1,3296.0,2.38549402]
[1633117397380,13.17370232,3296.0,3295.7,1.60558699]
[1633117397686,13.17370232,3296.0,3295.2,0.003]
[1633117397687,13.37443559,3295.6,3295.2,0.003]
[1633117397882,0.036403,3295.4,3295.2,0.003]
[1633117398083,0.27466813,3295.2,3294.1,0.84103341]
[1633117398282,0.27466813,3295.2,3293.5,0.015]
[1633117398481,1.3404244,3294.2,3293.6,0.17599292]
[1633117398682,3.05861569,3294.8,3293.6,0.17599292]
[1633117398881,0.26994183,3294.9,3294.1,0.009]
[1633117399081,0.23291337,3294.9,3294.1,0.009]
[1633117399284,0.95472968,3294.7,3294.1,0.71988556]
[1633117399482,3.26802337,3294.9,3294.2,0.21375262]
[1633117399681,3.26802337,3294.9,3294.2,0.22275262]
[1633117399881,1.4846136,3294.5,3294.3,0.009]
[1633117400681,0.07250061,3294.4,3294.3,0.009]
[1633117400880,0.07250061,3294.4,3294.0,0.003]
[1633117401284,0.07250061,3294.4,3294.3,0.079913]
[1633117402683,0.07250061,3294.4,3294.0,0.003]
[1633117403283,0.07250061,3294.4,3294.0,0.17899076]
[1633117403482,0.07250061,3294.4,3294.0,0.74954219]
[1633117404283,0.07250061,3294.4,3294.1,0.17598657]
[1633117404884,1.39073707,3294.7,3294.1,0.17598657]
[1633117405145,1.39073707,3294.7,3294.2,0.21381872]
[1633117405283,1.39073707,3294.7,3294.2,4.76562872]
[1633117406082,1.39073707,3294.7,3294.2,4.55181]
[1633117406285,1.46326218,3294.7,3294.2,4.55181]
[1633117406484,0.07252511,3294.7,3294.2,4.55181]
[1633117406685,0.07252511,3294.7,3294.4,1.294]
[1633117406884,0.07252511,3294.7,3294.5,0.17596604]
[1633117407087,0.07252511,3294.7,3294.3,1.9003031]
[1633117407288,0.07252511,3294.7,3294.4,0.17596064]
[1633117407486,0.07252511,3294.7,3294.5,2.30429797]
[1633117407683,0.07252511,3294.7,3294.6,0.1759592]
[1633117407885,0.07252511,3294.7,3294.6,1.4699592]
[1633117408151,0.07252511,3294.7,3294.6,0.1759592]
[1633117408286,0.07252511,3294.7,3294.6,0.17596019]
[1633117408486,0.07252511,3294.7,3294.5,4.55112]
[1633117410487,0.003,3295.0,3294.6,0.21370304]
[1633117410687,0.003,3295.0,3294.8,4.55113]
[1633117411690,0.07262267,3294.9,3294.8,4.55113]
[1633117413189,0.07262267,3294.9,3294.4,6.06815]
[1633117413987,0.07262267,3294.9,3294.4,7.06075522]
[1633117415292,1.12206562,3294.8,3294.4,7.06075522]
[1633117415489,0.07262267,3294.9,3294.4,7.06075522]
[1633117415890,0.003,3295.0,3294.4,6.06815]
[1633117416090,0.003,3295.0,3294.5,0.21370304]
[1633117416890,1.00743181,3294.8,3294.5,0.21370304]
[1633117417156,1.00743181,3294.8,3294.3,10.65123098]
[1633117417298,1.00743181,3294.8,3294.5,4.5518]
[1633117417693,0.99694061,3294.8,3294.5,4.5518]
[1633117418095,0.99694061,3294.8,3293.9,0.65002313]
[1633117418096,4.29811259,3294.5,3293.9,0.003]
[1633117418496,1.29988337,3294.4,3293.6,0.003]
[1633117418893,9.08081603,3294.3,3293.6,0.79237556]
[1633117419295,0.03870805,3294.4,3293.7,0.003]
[1633117419492,4.56027378,3294.5,3293.7,0.003]
[1633117419493,7.33344259,3294.5,3293.7,0.003]
[1633117419692,7.63402147,3294.5,3293.7,0.003]
[1633117419896,7.63402147,3294.5,3293.8,4.55268]
[1633117420158,7.63402147,3294.5,3293.7,0.003]
[1633117420292,2.04330613,3294.4,3293.7,1.46382937]
[1633117420691,2.04330613,3294.4,3293.8,0.003]
[1633117421295,6.59641613,3294.4,3293.8,0.003]
[1633117421496,6.59641613,3294.4,3294.3,0.21380219]
[1633117422499,8.82861901,3294.4,3294.3,0.21380219]
[1633117422695,8.94006844,3294.4,3293.6,0.87978956]
[1633117423095,8.94006844,3294.4,3293.7,0.003]
[1633117424495,9.8943125,3294.3,3293.7,0.003]
[1633117424695,9.8943125,3294.3,3294.2,1.0]
[1633117424896,0.7943125,3294.3,3294.2,1.0]
[1633117427095,0.7943125,3294.3,3294.2,1.21383525]
[1633117427897,0.7943125,3294.3,3294.2,0.21383525]
[1633117428097,0.86677726,3294.3,3293.6,0.003]
[1633117428497,5.42002726,3294.3,3293.6,0.17601105]
[1633117428896,5.42002726,3294.3,3293.7,0.003]
[1633117429300,1.1389464,3293.9,3293.7,0.003]
[1633117429499,5.42002726,3294.3,3293.7,0.003]
[1633117429897,5.42002726,3294.3,3293.5,0.006]
[1633117430696,1.51032714,3294.1,3293.5,0.006]
[1633117430897,5.42002726,3294.3,3293.5,0.006]
[1633117432300,6.75083564,3294.3,3293.5,0.006]
[1633117432500,6.67837088,3294.3,3293.6,0.21395095]
[1633117432704,9.71402088,3294.3,3293.6,0.21395095]
[1633117432907,18.0362755,3294.0,3293.7,0.003]
[1633117433104,13.38620429,3293.7,3293.6,5.095e-05]
[1633117433304,30.14290429,3293.7,3293.6,5.095e-05]
[1633117433503,26.42020429,3293.7,3293.6,5.095e-05]
[1633117433701,0.20965425,3293.6,3292.5,0.17604114]
[1633117433903,3.03683,3293.2,3292.5,0.17604114]
[1633117434102,3.03683,3293.2,3292.6,0.006]
[1633117434304,3.03683,3293.2,3292.7,0.17605365]
[1633117434702,11.25545,3292.9,3292.8,0.006]
[1633117434901,4.55545,3292.9,3292.8,0.006]
[1633117435169,4.55545,3292.9,3292.4,0.009]
[1633117435304,3.03698,3292.8,3292.5,0.17606084]
[1633117435508,3.03698,3292.8,3292.4,0.003]
[1633117435509,3.03698,3292.8,3292.6,0.17606262]
[1633117435705,3.03698,3292.8,3292.6,0.006]
[1633117435903,7.59244,3292.8,3292.7,0.006]
[1633117436104,7.59244,3292.8,3292.3,0.009]
[1633117436308,7.59244,3292.8,3292.4,0.17606001]
[1633117436703,7.59244,3292.8,3292.5,0.009]
[1633117436903,7.59244,3292.8,3292.6,0.17606056]
[1633117437105,0.03275054,3293.0,3292.6,0.17606056]
[1633117437310,22.34086869,3293.7,3292.8,1.294]
[1633117437506,22.34086869,3293.7,3293.2,0.079913]
[1633117437905,22.1616,3293.7,3293.3,0.003]
[1633117438180,23.31039032,3293.7,3293.3,0.003]
[1633117438304,23.31039032,3293.7,3293.2,0.17603288]
[1633117438305,12.03309032,3293.7,3293.2,0.17603288]
[1633117438504,11.2904,3293.9,3293.2,0.003]
[1633117438706,11.2904,3293.9,3293.3,0.003]
[1633117438906,0.91633122,3293.5,3293.3,0.003]
[1633117439105,0.91633122,3293.5,3293.3,4.55333]
[1633117439305,0.91633122,3293.5,3293.2,0.003]
[1633117439504,0.91633122,3293.5,3293.4,0.003]
[1633117439703,0.91633122,3293.5,3293.1,0.17903202]
[1633117439904,0.91633122,3293.5,3293.2,0.003]
[1633117440106,0.91633122,3293.5,3293.2,4.55646]
[1633117440307,0.17925665,3293.8,3293.3,0.17602712]
[1633117440506,0.17925665,3293.8,3293.3,0.003]
[1633117440711,0.17925665,3293.8,3293.4,0.003]
[1633117440906,1.21788974,3293.7,3293.0,1.459437]
[1633117441172,1.21788974,3293.7,3293.1,0.17903026]
[1633117441309,0.87340362,3293.7,3293.1,0.17903026]
[1633117441510,0.87340362,3293.7,3293.2,0.003]
[1633117443314,4.5543,3293.6,3293.2,0.003]
[1633117443511,4.5543,3293.6,3293.3,0.10714975]
[1633117443909,3.90960362,3293.7,3293.4,0.003]
[1633117444108,3.03658,3294.0,3293.4,0.003]
[1633117444711,0.17928116,3293.9,3293.4,0.003]
[1633117445112,0.83617393,3293.5,3293.1,0.17902961]
[1633117445312,0.83617393,3293.5,3293.2,0.003]
[1633117445913,1.16477922,3293.7,3293.2,0.003]
[1633117446909,1.97278103,3293.7,3293.2,0.003]
[1633117447310,0.80800181,3293.7,3293.2,0.003]
[1633117447511,0.17928116,3293.9,3293.2,0.003]
[1633117447715,0.17928116,3293.9,3293.5,1.294]
[1633117447916,0.17928116,3293.9,3293.6,0.079913]
[1633117448114,0.17928116,3293.9,3293.7,0.17601109]
[1633117448312,0.17928116,3293.9,3293.8,14.43328407]
[1633117448514,0.17928116,3293.9,3293.8,8.60317372]
[1633117448910,4.30111259,3294.5,3293.8,10.0041912]
[1633117449110,4.30111259,3294.5,3294.2,0.079913]
[1633117449317,4.30111259,3294.5,3294.3,0.17598914]
[1633117449512,4.30111259,3294.5,3294.3,1.64267655]
[1633117449710,4.30111259,3294.5,3294.3,1.46668741]
[1633117450110,4.30111259,3294.5,3294.4,1.294]
[1633117450911,4.30111259,3294.5,3294.4,1.46998072]
[1633117453213,4.30111259,3294.5,3294.3,6.78175961]
[1633117453412,4.30111259,3294.5,3294.3,6.01795741]
[1633117453619,4.30111259,3294.5,3294.4,0.17597581]
[1633117454410,5.27455754,3294.5,3294.4,0.28279495]
[1633117454811,4.30111259,3294.5,3294.4,0.28279495]
[1633117455217,4.30111259,3294.5,3294.4,0.10681914]
[1633117455413,5.76770197,3294.5,3294.4,0.10681914]
[1633117455612,5.80410497,3294.5,3293.1,1.8974249]
[1633117455811,5.80410497,3294.5,3293.0,0.003]
[1633117455812,6.79619868,3294.5,3293.2,0.1760052]
[1633117456013,4.55356,3294.2,3293.3,0.17601062]
[1633117456220,4.55356,3294.2,3293.3,0.17901062]
[1633117456512,1.49479394,3293.7,3293.4,0.003]
[1633117457111,1.49479394,3293.7,3293.3,0.17902216]
[1633117457312,3.03562,3294.3,3293.3,0.17902216]
[1633117457511,3.03562,3294.3,3293.4,0.003]
[1633117458511,2.31458501,3293.8,3293.4,0.003]
[1633117458914,2.31458501,3293.8,3293.4,1.503]
[1633117459113,2.31458501,3293.8,3293.5,0.17602207]
[1633117459313,2.31458501,3293.8,3293.5,0.17902207]
[1633117459714,6.86868501,3293.8,3293.5,0.17902207]
[1633117460112,6.86868501,3293.8,3293.6,0.10708361]
[1633117460713,3.03597,3293.9,3293.6,0.10708361]
[1633117461112,3.03597,3293.9,3293.5,0.003]
[1633117461318,0.17929377,3293.8,3293.5,0.17902472]
[1633117464516,1.45720168,3293.6,3293.5,0.17902472]
[1633117464717,1.45720168,3293.6,3293.5,0.003]
[1633117464916,1.45720168,3293.6,3293.5,0.17902843]
[1633117465318,0.78884013,3293.9,3293.5,0.17902843]
[1633117465521,0.78884013,3293.9,3293.6,0.10710014]
[1633117466318,1.1410808,3293.8,3293.6,0.10710014]
[1633117466718,1.32037471,3293.8,3293.5,0.003]
[1633117466918,1.32037471,3293.8,3293.5,0.17902237]
[1633117467318,0.17929391,3293.8,3293.5,0.17902237]
[1633117467523,0.17929391,3293.8,3293.6,0.079682]
[1633117467722,0.17929391,3293.8,3293.7,4.72886543]
[1633117467920,0.17929391,3293.8,3293.7,0.17600543]
[1633117468721,0.17929391,3293.8,3293.7,0.17601681]
[1633117468921,0.17929391,3293.8,3293.5,0.17901694]
[1633117469125,0.17929391,3293.8,3293.6,0.17601707]
[1633117469323,0.17929391,3293.8,3293.7,0.17601365]
[1633117469524,0.17929391,3293.8,3293.7,0.17601498]
[1633117469722,0.17929391,3293.8,3293.5,0.17901495]
[1633117469922,0.17929391,3293.8,3293.6,0.17601532]
[1633117470123,0.17929391,3293.8,3293.7,0.17601793]
[1633117470323,0.17929391,3293.8,3293.7,0.17601805]
[1633117470524,0.17929391,3293.8,3293.5,0.17901591]
[1633117470724,0.17929391,3293.8,3293.6,1.373529]
[1633117470924,1.0,3294.0,3293.7,0.17600699]
[1633117471187,1.0,3294.0,3293.7,0.28305753]
[1633117471326,1.0,3294.0,3293.8,0.17600244]
[1633117471527,1.0,3294.0,3293.8,4.72873244]
[1633117471731,1.0,3294.0,3293.9,0.17599853]
[1633117472125,1.17935497,3294.0,3293.9,0.17599853]
[1633117472926,1.17935497,3294.0,3293.9,0.17600364]
[1633117473127,1.17935497,3294.0,3293.6,0.17600413]
[1633117473327,1.17935497,3294.0,3293.7,0.1760042]
[1633117473528,1.17935497,3294.0,3293.8,0.17600256]
[1633117473725,1.17935497,3294.0,3293.9,0.17600488]
[1633117473925,1.17935497,3294.0,3293.6,0.17600491]
[1633117474330,1.17935497,3294.0,3293.7,4.55288]
[1633117474526,1.17935497,3294.0,3293.8,0.1760062]
[1633117475130,1.17935497,3294.0,3293.9,0.17600146]
[1633117475326,1.17935497,3294.0,3293.9,0.17599497]
[1633117475526,1.17935497,3294.0,3293.8,4.72858079]
[1633117475730,1.17935497,3294.0,3293.9,0.17600189]
[1633117476131,1.17935497,3294.0,3293.7,2.59646627]
[1633117476332,1.17935497,3294.0,3293.8,0.17600723]
[1633117476529,1.17935497,3294.0,3293.5,0.003]
[1633117476530,1.0,3294.0,3293.5,0.003]
[1633117476729,1.0,3294.0,3293.5,0.17901492]
[1633117477730,1.17930637,3294.0,3293.5,0.17901492]
[1633117477929,1.1685406,3293.7,3293.5,0.17901492]
[1633117478728,1.99013348,3293.7,3293.5,0.17901492]
[1633117481334,6.54430348,3293.7,3293.5,0.17901492]
[1633117481533,9.58031348,3293.7,3293.5,0.17901492]
[1633117481734,8.7587206,3293.7,3293.5,0.17901492]
[1633117481934,8.7587206,3293.7,3293.6,0.10710014]
[1633117482138,8.7587206,3293.7,3293.6,0.28312735]
[1633117482935,3.03601,3293.7,3293.6,0.28312735]
[1633117483338,3.03601,3293.7,3293.6,0.17602721]
[1633117483339,3.21527996,3293.7,3293.6,0.17602721]
[1633117483535,0.17926996,3293.7,3293.5,0.17902799]
[1633117486737,0.17926996,3293.7,3293.5,4.73231799]
[1633117486936,0.17926996,3293.7,3293.6,0.17602101]
[1633117487537,0.99053868,3293.8,3293.6,0.28310462]
[1633117487737,0.99053868,3293.8,3293.7,0.17602341]
[1633117488736,1.16983315,3293.8,3293.7,0.17602341]
[1633117488936,1.16983315,3293.8,3293.7,0.176024]
[1633117489200,1.16983315,3293.8,3293.5,0.17902617]
[1633117489341,1.16983315,3293.8,3293.5,0.17902619]
[1633117491141,1.0,3293.6,3293.5,0.17902619]
[1633117494242,1.17925805,3293.6,3293.5,0.17902619]
[1633117494443,1.17925805,3293.6,3293.5,0.17812019]
[1633117494844,1.17925805,3293.6,3293.5,4.73137019]
[1633117496244,1.17925805,3293.6,3293.5,0.17812019]
[1633117498444,1.0,3293.6,3293.5,0.17812019]
[1633117498645,1.0,3293.6,3293.5,2.5963726]
[1633117498843,1.0,3293.6,3293.5,0.17812019]
[1633117499442,1.0,3293.6,3293.5,0.9946813]
[1633117499645,1.17925819,3293.6,3293.5,0.9946813]
[1633117500442,1.17925819,3293.6,3293.5,0.17812019]
[1633117501444,1.96030634,3293.6,3293.5,0.17812019]
[1633117501844,7.56030634,3293.6,3293.5,0.17812019]
[1633117502045,5.35941508,3293.6,3293.5,0.17812019]
[1633117502850,13.0281,3293.5,3293.4,0.68961139]
[1633117503046,13.0281,3293.5,3293.4,0.642]
[1633117503047,13.00564772,3293.5,3293.4,0.642]
[1633117503647,23.96984772,3293.5,3293.4,0.642]
[1633117504047,11.15625072,3293.5,3293.4,0.74914975]
[1633117504527,11.13109161,3293.5,3293.4,0.74914975]
[1633117505126,11.13109161,3293.5,3293.4,0.642]
[1633117505327,11.31031338,3293.5,3293.4,0.642]
[1633117505726,11.17982477,3293.5,3293.4,0.642]
[1633117505926,11.14342177,3293.5,3293.4,0.642]
[1633117506127,0.17922177,3293.5,3293.4,0.642]
[1633117507530,0.16873316,3293.5,3293.4,0.642]
[1633117508133,0.16873316,3293.5,3293.4,3.10101904]
[1633117508329,1.003,3294.0,3293.5,13.0]
[1633117508529,1.003,3294.0,3293.9,13.079913]
[1633117508729,1.003,3294.0,3293.9,0.079913]
[1633117509328,1.09270847,3294.0,3293.9,2.55492769]
[1633117509528,1.09270847,3294.0,3293.9,3.84892769]
[1633117509728,1.09270847,3294.0,3293.9,6.35140545]
[1633117510129,0.003,3295.0,3294.0,0.11]
[1633117510328,0.003,3295.0,3294.5,4.29811259]
[1633117510534,0.003,3295.0,3294.9,1.22319801]
[1633117510733,0.003,3295.0,3294.9,3.72267304]
[1633117510929,0.003,3295.0,3294.9,2.07415518]
[1633117511134,0.003,3295.0,3294.9,9.05413874]
[1633117511728,0.003,3296.0,3295.0,14.819598]
[1633117511930,0.003,3296.0,3295.4,13.079913]
[1633117512130,0.003,3296.0,3295.4,24.61530682]
[1633117512528,0.003,3296.0,3295.4,12.28494901]
[1633117512728,0.003,3296.0,3295.4,13.57894901]
[1633117512929,0.003,3296.0,3295.4,14.08130015]
[1633117514932,0.04825628,3295.5,3295.4,14.08130015]
[1633117515332,0.04825628,3295.5,3295.4,12.78730015]
[1633117516333,0.04825628,3295.5,3295.4,14.08130015]
[1633117517532,0.04825628,3295.5,3295.4,12.78730015]
[1633117517732,0.04825628,3295.5,3295.4,14.08130015]
[1633117518133,0.003,3296.0,3295.5,13.0]
[1633117518335,0.003,3296.0,3295.9,13.079913]
[1633117518538,0.003,3296.0,3295.9,3.15052443]
[1633117518735,0.003,3296.0,3295.9,4.61763036]
[1633117518934,0.006,3296.2,3296.0,13.0]
[1633117519134,0.006,3296.2,3296.1,15.5347399]
[1633117519337,0.006,3296.2,3296.1,2.5347399]
[1633117519735,0.006,3296.2,3296.1,15.42359308]
[1633117519937,0.006,3297.8,3297.7,3.31343326]
[1633117520137,0.006,3297.8,3297.7,7.26526487]
[1633117520138,2.466,3297.8,3297.7,7.26526487]
[1633117520335,0.006,3297.9,3297.8,8.15]
[1633117520535,0.006,3297.9,3297.8,2.73531577]
[1633117520736,0.006,3297.9,3297.8,8.80441577]
[1633117521039,0.9205,3298.0,3297.9,13.66754991]
[1633117521236,0.9205,3298.0,3297.9,7.03664991]
[1633117521437,0.9205,3298.0,3297.9,27.46137592]
[1633117521639,0.006,3298.9,3298.0,13.0]
[1633117521836,0.006,3298.9,3298.2,0.079913]
[1633117522035,2.469,3298.5,3298.3,7.26792003]
[1633117522838,2.469,3298.5,3298.3,6.0691]
[1633117523642,2.419,3298.5,3298.3,6.0691]
[1633117524441,0.92190929,3298.6,3298.3,6.0691]
[1633117524641,1.77920929,3298.6,3298.3,6.0691]
[1633117524839,0.9522,3298.6,3298.3,6.0691]
[1633117525441,1.29445179,3298.5,3298.3,6.0691]
[1633117526040,0.02334596,3298.5,3298.3,6.0691]
[1633117526441,13.036403,3298.4,3298.3,6.0691]
[1633117526642,1.25,3298.3,3297.9,0.003]
[1633117526843,1.25,3298.3,3297.8,0.003]
[1633117527242,0.95247923,3297.9,3297.8,0.003]
[1633117527441,1.39259898,3298.2,3297.8,0.003]
[1633117528641,1.39259898,3298.2,3297.8,0.76952288]
[1633117528845,0.02334596,3298.5,3297.8,0.76952288]
[1633117529043,0.02334596,3298.5,3297.9,0.003]
[1633117529841,1.29120163,3298.2,3297.9,0.003]
[1633117531043,1.29120163,3298.2,3297.8,0.003]
[1633117531648,0.78911597,3298.0,3297.9,0.26272388]
[1633117531844,1.31445052,3298.2,3297.9,0.26272388]
[1633117532045,1.31445052,3298.2,3297.9,0.26572388]
[1633117532246,1.31445052,3298.2,3298.0,0.003]
[1633117534647,1.26445052,3298.2,3298.0,0.003]
[1633117534848,0.72572823,3298.1,3298.0,0.003]
[1633117535049,10.24102823,3298.1,3298.0,0.003]
[1633117535451,5.39809659,3297.7,3297.5,0.003]
[1633117535653,2.88715324,3297.0,3296.5,2.4615134]
[1633117535850,1.65111392,3296.8,3296.5,0.003]
[1633117536051,1.46754831,3296.7,3296.5,0.003]
[1633117536250,1.46754831,3296.7,3295.8,0.006]
[1633117536451,0.98113426,3295.9,3295.8,0.78126196]
[1633117536653,1.7827,3296.3,3295.8,0.78126196]
[1633117536850,0.5945,3296.2,3295.8,0.006]
[1633117537052,0.5945,3296.2,3295.9,0.006]
[1633117537311,0.5445,3296.2,3295.9,0.1380054]
[1633117537712,0.5445,3296.2,3296.0,0.006]
[1633117538109,4.03314282,3296.7,3296.0,0.006]
[1633117539109,1.35526309,3296.1,3296.0,0.006]
[1633117540313,2.08613624,3296.1,3296.0,0.006]
[1633117540510,1.35526309,3296.1,3296.0,0.006]
[1633117541710,1.35526309,3296.1,3296.0,1.506]
[1633117542314,4.55059,3296.3,3296.0,1.506]
[1633117542713,0.15412466,3296.1,3296.0,1.503]
[1633117543114,0.15412466,3296.1,3296.0,1.506]
[1633117544916,0.15412466,3296.1,3296.0,2.44287634]
[1633117548123,0.8465467,3296.6,3296.0,2.44287634]
[1633117548324,1.21157405,3296.7,3296.0,2.57489825]
[1633117548523,1.21157405,3296.7,3296.2,4.5489]
[1633117548922,1.21157405,3296.7,3296.3,0.003]
[1633117551130,1.21157405,3296.7,3296.1,0.003]
[1633117551331,1.21157405,3296.7,3296.2,4.54893]
[1633117551732,1.21157405,3296.7,3296.3,0.003]
[1633117553330,1.36582065,3296.7,3296.3,0.003]
[1633117553730,1.21157405,3296.7,3296.3,0.003]
[1633117553930,1.21157405,3296.7,3296.4,0.13185684]
[1633117554331,1.21157405,3296.7,3296.5,0.003]
[1633117555535,1.21157405,3296.7,3296.0,1.12366318]
[1633117555733,0.003,3296.5,3296.0,1.12366318]
[1633117556336,0.003,3296.5,3296.2,4.54893]
[1633117556535,0.003,3296.5,3296.3,0.078861]
[1633117557536,0.003,3296.5,3296.4,11.3154819]
[1633117557735,0.003,3296.5,3296.4,7.2636119]
[1633117558132,0.003,3296.5,3296.4,4.54813]
[1633117558335,0.003,3296.5,3296.0,1.12366318]
[1633117558934,0.22315083,3296.5,3296.2,4.54895]
[1633117559134,0.003,3296.5,3296.2,4.54895]
[1633117559534,0.003,3296.5,3296.3,1.294]
[1633117559733,0.003,3296.5,3296.3,0.0799]
[1633117559934,0.003,3296.5,3296.4,4.54812]
[1633117564340,0.22315097,3296.5,3296.4,4.54812]
[1633117564736,0.003,3296.5,3296.4,4.54812]
[1633117564935,0.003,3296.5,3296.4,4.61408143]
[1633117566336,0.003,3296.5,3296.4,5.90808143]
[1633117567136,0.003,3296.5,3296.4,4.61408143]
[1633117569937,0.22315111,3296.5,3296.4,4.54812]
[1633117570137,0.003,3296.5,3296.4,4.54812]
[1633117570341,0.003,3296.5,3296.4,4.61408143]
[1633117571940,0.003,3296.5,3296.4,5.21408143]
[1633117575145,0.003,3296.5,3296.4,5.14812]
[1633117575344,0.22315125,3296.5,3296.4,5.14812]
[1633117575750,0.003,3296.5,3296.4,5.14812]
[1633117575946,0.003,3296.5,3296.4,5.21408143]
[1633117579349,0.71621021,3296.5,3296.4,5.21408143]
[1633117579947,0.71621021,3296.5,3296.4,0.66596143]
[1633117580350,1.84799926,3296.5,3296.4,0.66596143]
[1633117580748,2.06815065,3296.5,3296.4,0.6]
[1633117580957,0.9363616,3296.5,3296.4,0.6]
[1633117581148,0.71621021,3296.5,3296.4,0.6]
[1633117581349,0.71621021,3296.5,3296.4,0.66596143]
[1633117581950,0.003,3296.5,3296.4,0.66596143]
[1633117582231,0.003,3296.5,3296.4,5.21512143]
[1633117582952,0.003,3296.5,3296.4,5.5529476]
[1633117583152,0.003,3296.5,3296.4,5.21512143]
[1633117583352,0.003,3296.5,3296.4,5.55297124]
[1633117585353,0.003,3296.5,3296.4,1.00381124]
[1633117586157,0.003,3296.5,3296.4,0.93784981]
[1633117586353,0.22315153,3296.5,3296.4,0.93784981]
[1633117586753,0.003,3296.5,3296.4,0.93784981]
[1633117586955,0.003,3296.5,3296.4,1.00381124]
[1633117588219,0.003,3296.5,3296.4,5.55302124]
[1633117591764,0.22315167,3296.5,3296.4,5.48705981]
[1633117592366,0.003,3296.5,3296.4,5.48705981]
[1633117592562,0.003,3296.5,3296.4,5.55302124]
[1633117597230,0.003,3296.5,3296.4,5.48705981]
[1633117597467,0.22315181,3296.5,3296.4,5.48705981]
[1633117597667,0.99581991,3296.8,3296.4,5.48705981]
[1633117597868,0.99581991,3296.8,3296.5,0.33887656]
[1633117598071,2.24618676,3296.8,3296.5,0.33887656]
[1633117598267,0.99581991,3296.8,3296.5,0.33887656]
[1633117599268,0.99581991,3296.8,3296.6,4.5486]
[1633117599469,0.99581991,3296.8,3296.7,0.33922673]
[1633117599869,0.99581991,3296.8,3296.7,0.339221]
[1633117600067,0.99581991,3296.8,3296.5,0.33923405]
[1633117600469,0.99581991,3296.8,3296.7,4.54853]
[1633117600670,2.31969597,3296.8,3296.7,4.88775618]
[1633117601869,0.99581991,3296.8,3296.7,4.88775618]
[1633117602070,2.89015324,3297.0,3296.7,4.88775618]
[1633117602271,2.89015324,3297.0,3296.8,0.33940033]
[1633117602469,17.89015324,3297.0,3296.9,0.33938747]
[1633117602671,17.89015324,3297.0,3296.4,0.6]
[1633117602672,4.54942,3296.8,3296.4,0.6]
[1633117602870,4.54942,3296.8,3296.5,0.3394742]
[1633117603240,0.89916401,3296.7,3296.5,0.3394742]
[1633117603372,0.89916401,3296.7,3296.6,0.06964321]
[1633117603674,6.64870905,3296.7,3296.6,0.40919399]
[1633117605475,2.09903905,3296.7,3296.6,0.40919399]
[1633117606474,6.64851905,3296.7,3296.6,0.40919399]
[1633117608277,6.86498416,3296.7,3296.6,0.33955078]
[1633117608476,6.86498416,3296.7,3296.6,0.33985678]
[1633117608676,6.64851905,3296.7,3296.6,0.33985678]
[1633117608878,6.64851905,3296.7,3296.6,0.33986309]
[1633117609078,6.64851905,3296.7,3296.5,0.33994986]
[1633117609340,6.64851905,3296.7,3296.6,0.33994993]
[1633117609543,6.64851905,3296.7,3296.5,0.33994654]
[1633117613544,2.28103905,3296.7,3296.5,0.33994654]
[1633117613947,2.49749214,3296.7,3296.5,0.33994654]
[1633117614144,6.83057905,3296.7,3296.5,0.33994654]
[1633117614343,6.83057905,3296.7,3296.6,0.06964321]
[1633117614544,6.83057905,3296.7,3296.6,0.40960193]
[1633117614945,2.28103905,3296.7,3296.6,0.40960193]
[1633117616147,6.83078905,3296.7,3296.6,0.40960193]
[1633117616547,8.95371967,3296.7,3296.6,0.00010193]
[1633117616748,8.95371967,3296.7,3295.9,0.003]
[1633117616749,12.5,3296.5,3295.9,0.003]
[1633117616949,15.0,3296.1,3295.9,0.003]
[1633117617149,28.218403,3296.0,3294.8,2.49888799]
[1633117617354,15.0,3295.4,3294.8,0.009]
[1633117617552,15.0,3295.4,3294.9,0.009]
[1633117617553,3.03516,3295.1,3294.9,0.009]
[1633117617750,10.632,3295.0,3294.5,0.012]
[1633117617949,10.93244286,3295.0,3294.5,0.012]
[1633117618149,3.0351304,3294.9,3294.5,0.012]
[1633117618360,12.9852911,3294.6,3294.5,0.012]
[1633117618560,13.25126326,3294.6,3294.5,0.012]
[1633117618758,2.55126326,3294.6,3294.5,0.012]
[1633117618959,0.182,3294.6,3294.5,0.012]
[1633117619159,0.182,3294.9,3294.5,2.64247633]
[1633117619459,0.25076362,3294.6,3294.5,0.081032]
[1633117619658,0.182,3294.9,3294.5,0.003]
[1633117619659,0.218403,3294.9,3294.5,0.003]
[1633117619863,0.7090853,3294.7,3294.6,0.04446561]
[1633117620659,0.03768976,3294.8,3294.6,0.04446561]
[1633117620863,0.182,3294.9,3294.7,0.079913]
[1633117621060,0.182,3294.9,3294.7,0.088913]
[1633117621266,0.182,3295.4,3294.8,1.303]
[1633117621467,0.1192,3296.2,3294.8,1.303]
[1633117621468,13.29989892,3296.3,3295.7,1.27463245]
[1633117621666,0.98863535,3296.2,3295.8,2.80111415]
[1633117621864,0.98863535,3296.2,3295.8,0.003]
[1633117622064,0.98863535,3296.2,3295.9,0.003]
[1633117622865,1.50792184,3296.0,3295.9,0.003]
[1633117623064,0.98863535,3296.2,3295.7,0.003]
[1633117623269,0.98863535,3296.2,3295.8,0.6]
[1633117623665,0.98863535,3296.2,3295.9,0.003]
[1633117624866,1.0981065,3296.0,3295.9,0.003]
[1633117625071,0.25112898,3296.1,3295.9,0.003]
[1633117625264,0.182,3296.3,3295.9,0.003]
[1633117625466,0.182,3296.3,3296.0,0.03500317]
[1633117625864,0.89035628,3296.2,3296.0,0.03800317]